Cogmind - Beta 17.1 @@@ ROGUE MODE // 2026.09.21 @ 13:33:26 Player: Caluan Result: Destroyed by Y-54 Guardian with Gatling Laser Performance ------------- Evolutions (0) 0 Regions Visited (3) 600 Robots Destroyed (36) 180 Value Destroyed (803) 803 Prototype IDs (0) 0 Alien Tech Used (0) 0 Bonus (0) 0 TOTAL SCORE: 1583 Bonus ------- None Cogmind --------- Core Integrity 0/250 Matter 286/300 Energy 100/100 System Corruption 0% Temperature Cool (13) Movement Treading (320) Ox2 Location -7/Recycling Parts ------- > --- POWER (1) -------- Subdweller Power Source > --- PROPULSION (2) --- Improved Treads Improved Treads > --- UTILITY (2) ------ Huge Storage Unit Hardened Medium Armor Plating > --- WEAPON (2) ------- Assault Rifle Autogun > --- INVENTORY (25) --- Subdweller Power Source Improved Deuterium Engine Improved Treads Improved Treads Improved Treads Improved Treads Improved Treads Armored Treads High-capacity Battery (250) Subdweller Optics Subdweller Optics Hacking Suite Subdweller Beam Cannon Flak Gun Battle Cannon Plasma Cutter Hammer Peak State ------------ > --- POWER ------------ Light Nuclear Core > --- PROPULSION ------- Improved Treads Improved Treads > --- UTILITY ---------- Huge Storage Unit Hacking Suite > --- WEAPON ----------- Autogun Autogun > --- INVENTORY -------- Subdweller Power Source Improved Treads Improved Treads Improved Treads Improved Treads Improved Treads Improved Treads High-capacity Battery Subdweller Optics Hacking Suite Subdweller Beam Cannon Assault Rifle Autogun Battle Cannon Plasma Cutter Hammer [Rating: 18] Favorites ----------- Power Ion Engine Engine Ion Engine Power Core Light Nuclear Core Propulsion Improved Treads Treads Improved Treads Utility Hacking Suite Storage Large Storage Unit Hackware Hacking Suite Protection Hardened Medium Armor Plating Weapon Autogun Energy Gun EM Pulse Gun Ballistic Gun Autogun Build | -11 -10 -10 -7 ------- Run | Yrd Mat Sub Rec Slots Evolved . | . . . . Power . | . . . . Propulsion . | . . . . Utility . | . . . . Weapon . | . . . . Parts Attached 22 | 6 10 5 1 Power 4 | 1 2 1 . Engine 3 | 1 1 1 . Core 1 | . 1 . . Reactor . | . . . . Propulsion 5 | 2 2 1 . Treads 5 | 2 2 1 . Leg . | . . . . Wheel . | . . . . Hover . | . . . . Flight . | . . . . Utility 5 | 1 2 1 1 Device . | . . . . Storage 3 | 1 1 1 . Processor . | . . . . Hackware 1 | . 1 . . Protection 1 | . . . 1 Artifact . | . . . . Weapon 8 | 2 4 2 . Energy Gun 1 | 1 . . . Energy Cannon . | . . . . Ballistic Gun 7 | 1 4 2 . Ballistic Cannon . | . . . . Launcher . | . . . . Special Weapon . | . . . . Impact Weapon . | . . . . Slashing Weapon . | . . . . Piercing Weapon . | . . . . Special Melee Weapon . | . . . . Unidentified Prototypes . | . . . . Parts Lost 7 | . 6 1 . Power 3 | . 2 1 . Propulsion 1 | . 1 . . Utility . | . . . . Weapon 3 | . 3 . . Highest Loss Streak 4 | . 4 1 . To Critical Strikes . | . . . . Average Backups 12 | 1 11 16 15 Power 1 | . . 1 1 Propulsion 5 | . 5 6 5 Utility 2 | . 1 3 4 Weapon 3 | . 2 4 3 Tool/Special . | . . . . Unused Backups 18 | . . 1 17 Power 2 | . . . 2 Propulsion 6 | . . . 6 Utility 5 | . . 1 4 Weapon 4 | . . . 4 Tool/Special 1 | . . . 1 Average Slot Usage (%) 98 | . 97 100 100 Engine 10 | . 11 2 14 Core 2 | . . 11 . Treads 27 | . 27 28 28 Storage 14 | . 14 14 14 Hackware 12 | . 13 14 11 Ballistic Gun 27 | . 27 28 28 Peak Build Rating 18 | 6 17 18 16 Average Rating 13 | 4 11 17 15 On Entrance 9 | . 6 17 15 Avg Prop Armor Cover (%) . | . . . . Naked Turns . | . . . . Heaviest Build 98 | 14 31 91 98 Greatest Support 46 | 40 46 46 46 Greatest Overweight (x) 2 | . . 1 2 Average Overweight (x) . | . . . 1 Largest Inventory Capacity 25 | 8 15 25 25 Average Capacity 17 | 7 13 22 25 Most Carried 19 | 5 15 19 17 Average Carried 12 | 2 11 16 15 Final Capacity 25 | 8 15 25 25 Final Carried 17 | 2 13 14 17 Class Distribution -------------------- 100% | Mutant Dominant Class ---------------- Mutant | -10/Materials Mutant | -10/Subcaves Mutant | -7/Recycling Resources | -11 -10 -10 -7 ----------- Run | Yrd Mat Sub Rec Matter Collected 990 | 253 442 171 124 Remotely . | . . . . Salvage Created 1330 | . 921 251 158 Parts 86 | . 65 17 4 Haulers Intercepted 2 | . 2 . . Recyclers Shooed 4 | . 4 . . Parts Field Recycled . | . . . . Retrieved Matter . | . . . . Parts Self-Destructed 13 | . . 13 . Prevented . | . . . . Parts Restored . | . . . . Kills | -11 -10 -10 -7 ------- Run | Yrd Mat Sub Rec Combat Hostiles Destroyed 28 | . 23 4 1 Guns 28 | . 23 4 1 Classes Destroyed 8 | . 6 1 1 Builder 1 | . 1 . . Hauler 2 | . 2 . . Operator 2 | . 2 . . Turret 2 | . . 2 . Watcher 1 | . 1 . . Swarmer 13 | . 9 4 . Grunt 14 | . 14 . . Sentry 1 | . . . 1 Best Kill Streak 5 | . 5 4 1 Combat Bots Only 4 | . 4 4 1 Max Kills in Single Turn 2 | . 2 1 1 Gunslinging 1 | . 1 . . Exploded . | . . . . Melee . | . . . . Uniques/NPCs Destroyed . | . . . . Combat | -11 -10 -10 -7 -------- Run | Yrd Mat Sub Rec Hostile Shots Fired 281 | . 127 115 39 Missed 87 | . 29 46 12 Hits 194 | . 98 69 27 Projectile 194 | . 98 69 27 Critical Strikes 3 | . 3 . . Damage Taken 1744 | . 1039 502 203 Core 252 | . 157 50 45 Absorbed by Shields . | . . . . Core Remaining (%) 100 | 100 . . . Volleys Fired 109 | . 75 29 5 Largest 2 | . 2 2 2 Hottest 60 | . 60 46 43 Shots Fired 216 | . 148 58 10 Gun 216 | . 148 58 10 Cannon . | . . . . Launcher . | . . . . Special . | . . . . Kinetic 209 | . 141 58 10 Thermal . | . . . . Explosive . | . . . . Electromagnetic 7 | . 7 . . Robot Hit Streak 27 | . 27 19 12 Robot Miss Streak 5 | . 2 5 . Penetration Max . | . . . . Secondary Targets 6 | . 6 . . Max Gunslinging Chain 1 | . 1 . . Shots Hit Robots 159 | . 111 38 10 Core Hits 75 | . 52 16 7 Critical Kills 1 | . 1 . . Critical Parts Destroyed 1 | . 1 . . Critical Strikes 2 | . 2 . . Destroy 2 | . 2 . . Melee Attacks . | . . . . Impact . | . . . . Slashing . | . . . . Piercing . | . . . . Sneak Attacks . | . . . . Combat Hostiles . | . . . . Follow-up Attacks . | . . . . Damage Inflicted 2141 | . 1405 590 146 Guns 2108 | . 1380 590 138 Cannons . | . . . . Explosions . | . . . . Melee . | . . . . Ramming 33 | . 25 . 8 Kinetic 2055 | . 1327 590 138 Thermal . | . . . . Explosive . | . . . . Electromagnetic 53 | . 53 . . Impact . | . . . . Slashing . | . . . . Piercing . | . . . . Highest Corruption . | . . . . Average Corruption . | . . . . Corruption Purged . | . . . . Corruption Blocked . | . . . . Overload Shots . | . . . . Overflow Damage . | . . . . Projectiles . | . . . . Explosions . | . . . . Melee . | . . . . Knockbacks . | . . . . Impact . | . . . . Kinetic . | . . . . Secondary . | . . . . Self-Inflicted Damage . | . . . . Shots . | . . . . Rammed 8 | . 7 . 1 Targets Rammed 8 | . 7 . 1 Kicked . | . . . . Crushed . | . . . . Highest Temperature 60 | . 60 5 20 Average Temperature 16 | . 17 5 4 Received Heat Transfer 798 | . 486 252 60 Siege Activations . | . . . . Martial Activations . | . . . . Shielding Activations . | . . . . Robots Disrupted . | . . . . Combat Hostiles . | . . . . Robots Corrupted . | . . . . Combat Hostiles . | . . . . Parts Fried 1 | . 1 . . Impact Corruptions . | . . . . Robots Melted . | . . . . Combat Hostiles . | . . . . Parts Melted . | . . . . Heat Transferred . | . . . . Parts Sabotaged . | . . . . Parts Stolen . | . . . . Parts Stripped . | . . . . Power Chain Reactions . | . . . . Alert | -11 -10 -10 -7 ------- Run | Yrd Mat Sub Rec Maximum Alert Level . | . . . . Low Security (%) 100 | 100 100 . 100 Level 1 . | . . . . Level 2 . | . . . . Level 3 . | . . . . Level 4 . | . . . . Level 5 . | . . . . High Security . | . . . . Max Security . | . . . . Peak Influence 149 | . 149 . 50 Initial 40 | . . . 40 Average 52 | . 74 . 8 Influence Increases 867 | . 658 150 59 Destroy 0b10 Robot/C 600 | . 460 120 20 Destroy 0b10 Robot/NC 35 | . 30 . 5 Destroy Leader 96 | . 96 . . Successful Hack 46 | . 12 . 34 Lose Combat Pursuer 90 | . 60 30 . Influence Decreases 867 | . 553 171 143 Entered New Map 95 | . . 51 44 Time Decay 712 | . 503 110 99 Lost Part 60 | . 50 10 . Squads Dispatched 4 | . 4 . . Investigation 2 | . 2 . . Extermination . | . . . . Reinforcement 2 | . 2 . . Assault . | . . . . Garrison . | . . . . Intercept . | . . . . Searches Triggered . | . . . . Construction Impeded . | . . . . Haulers Reinforced . | . . . . Active Scanning Responses . | . . . . Cargo Convoy Interrupts . | . . . . Stealth | -11 -10 -10 -7 --------- Run | Yrd Mat Sub Rec Distress Signals 3 | . 3 . . Communications Jammed . | . . . . Distress Signals . | . . . . Times Spotted 49 | . 39 8 2 Peak Tracking Total 6 | . 5 6 1 Tactical Retreats 3 | . 2 1 . Traps | -11 -10 -10 -7 ------- Run | Yrd Mat Sub Rec Traps Triggered 1 | . 1 . . Indirectly . | . . . . Trap Hack Attempts . | . . . . Triggered . | . . . . Disarmed . | . . . . Reprogrammed . | . . . . Reused . | . . . . Traps Extracted . | . . . . Installed . | . . . . Triggered . | . . . . Machines | -11 -10 -10 -7 ---------- Run | Yrd Mat Sub Rec Machines Disabled . | . . . . Max in Single Turn . | . . . . Machines Repaired . | . . . . Machines Dismantled . | . . . . Machines Sabotaged . | . . . . Overloaded Fab Kills . | . . . . Hacking | -11 -10 -10 -7 --------- Run | Yrd Mat Sub Rec Machines Accessed 10 | . 6 . 4 Terminals 7 | . 5 . 2 Fabricators . | . . . . Repair Stations . | . . . . Recycling Units 3 | . 1 . 2 Scanalyzers . | . . . . Garrison Access . | . . . . Total Hacks 21 | . 12 . 9 Successful 14 | . 8 . 6 Failed 7 | . 4 . 3 Catastrophic 3 | . 1 . 2 Database Lockouts . | . . . . Manual 14 | . 9 . 5 Terminals 14 | . 9 . 5 Fabricators . | . . . . Repair Stations . | . . . . Recycling Units 7 | . 3 . 4 Scanalyzers . | . . . . Garrison Access . | . . . . Terminal Hacks 2 | . 1 . 1 Branch Access Points 1 | . . . 1 Registered Components 1 | . 1 . . Fabricator Hacks . | . . . . Repair Station Hacks . | . . . . Recycling Unit Hacks 3 | . 1 . 2 Report Inventory 1 | . 1 . . Retrieve Components 2 | . . . 2 Scanalyzer . | . . . . Garrison Access Hacks . | . . . . Unauthorized Hacks 9 | . 6 . 3 Terminals 7 | . 6 . 1 Botnet 6 | . 5 . 1 Operators 1 | . 1 . . Fabricators . | . . . . Repair Stations . | . . . . Recycling Units 2 | . . . 2 Reject 2 | . . . 2 Scanalyzers . | . . . . Garrison Access . | . . . . Data Cores Recovered . | . . . . Used . | . . . . Hacking Detections 5 | . 2 . 3 Full Trace Events 1 | . 1 . . Feedback Events . | . . . . Feedback Blocked . | . . . . Robot Schematics Acquired . | . . . . Robots Built . | . . . . Authchips . | . . . . Time . | . . . . Total Robot Build Rating . | . . . . Part Schematics Acquired . | . . . . Parts Built . | . . . . Authchips . | . . . . Time . | . . . . Total Part Build Rating . | . . . . Part Studies Acquired . | . . . . Parts Repaired . | . . . . Time . | . . . . Parts Recycled . | . . . . Recycled Matter . | . . . . Retrieved Matter . | . . . . Retrieved Components 3 | . . . 3 Parts Scanalyzed . | . . . . Part Schematics Acquired . | . . . . Parts Damaged . | . . . . Bothacking | -11 -10 -10 -7 ------------ Run | Yrd Mat Sub Rec Used RIF Installer . | . . . . Robots Hacked . | . . . . Non-combat . | . . . . Combat . | . . . . Robot Hacks Applied . | . . . . Relay Couplers Released . | . . . . Fabnet Peak Effective % . | . . . . Robots Rewired . | . . . . Allies Hacked . | . . . . Hacks Repelled . | . . . . Allies | -11 -10 -10 -7 -------- Run | Yrd Mat Sub Rec Total Allies . | . . . . Largest Group . | . . . . Highest-Rated Group . | . . . . Highest-Rated Ally . | . . . . Total Orders . | . . . . Ally Attacks . | . . . . Total Damage . | . . . . Kills . | . . . . Allies Corrupted . | . . . . Allies Melted . | . . . . Intel | -11 -10 -10 -7 ------- Run | Yrd Mat Sub Rec Active Infowar (turns) . | . . . . Robot Analysis Total . | . . . . Derelict Logs Recovered 1 | . . 1 . Drone Launches . | . . . . Drone Recoveries . | . . . . Exploration | -11 -10 -10 -7 ------------- Run | Yrd Mat Sub Rec Turns Passed 2836 | 77 1564 520 675 Spaces Moved 1292 | 53 800 196 243 Core 19 | 19 . . . Treads 1273 | 34 800 196 243 Legs . | . . . . Wheels . | . . . . Hover . | . . . . Flight . | . . . . Fastest Speed 50 | 50 160 160 240 Average Speed 184 | 120 160 217 250 Slowest Speed 320 | 160 160 240 320 Overloaded Moves . | . . . . Propulsion Burnouts . | . . . . Robots Hopped . | . . . . Potential Cave-ins . | . . . . Cave-ins Triggered . | . . . . Exploration Rate (%) 40 | 3 88 15 55 Regions Visited 3 Branch Regions 2 Pre-discovered Areas . | . . . . Known Exits Taken . | . . . . Unknown Exits Taken 3 | 1 1 1 . Scrap Searched . | . . . . Spaces Dug . | . . . . Terrain Destroyed . | . . . . Melee . | . . . . Projectile . | . . . . AOE . | . . . . Terrain Rammed . | . . . . Walls Destroyed . | . . . . Machines Disabled . | . . . . Actions | -11 -10 -10 -7 --------- Run | Yrd Mat Sub Rec Total 1565 | 66 957 243 299 Wait 88 | . 45 . 43 Move 1289 | 52 799 195 243 Hop . | . . . . Pick Up 37 | 8 18 8 3 Fast Attach 2 | . 1 . 1 Attach 15 | 6 6 3 . Detach . | . . . . Swap 5 | . 3 2 . Drop 10 | . 3 6 1 Fire 109 | . 75 29 5 Melee . | . . . . Ram . | . . . . Kick . | . . . . Crush 8 | . 7 . 1 Escape Stasis . | . . . . Rewire 2 | . . . 2 Trap . | . . . . Miscellaneous . | . . . . Route ------- -11/Scrapyard -10/Materials (discovered 5 exits: [*Mat x3] / [*Min] / [*Sub]) -10/Subcaves -7/Recycling History --------- Turn | Location | Event 3 | -11/Scrapyard | Discovered new exit (range 15) 78 | -11/Scrapyard | Entered Materials 237 | -10/Materials | Discovered new exit (range 12) 333 | -10/Materials | Build established: Mutant 930 | -10/Materials | Discovered new exit (range 16) 1409 | -10/Materials | Core integrity fell below 50% 1439 | -10/Materials | Lost 4 parts (1p1n2w) 1522 | -10/Materials | Discovered new exit (range 6) 1590 | -10/Materials | Discovered new exit (range 11) 1605 | -10/Materials | Discovered new exit (range 6) 1642 | -10/Materials | Entered Subcaves 1650 | -10/Subcaves | Shifting Twisted Machinery released Battle Cannon 1651 | -10/Subcaves | Shifting Twisted Machinery released Scrap Shield 2088 | -10/Subcaves | Discovered new exit (range 15) 2117 | -10/Subcaves | Core integrity fell below 20% 2136 | -10/Subcaves | Learned Materials interactive machine intel 2162 | -10/Subcaves | Entered Recycling 2837 | -7/Recycling | Destroyed by Y-54 Guardian with Gatling Laser Last Messages --------------- 02577_ Attempting to rewire R-06 Scavenger. 02577_ R-06 Scavenger is unpowered. 02578_ R-06 Scavenger destroyed. 02581_ Acquired 56 matter. 02588_ R-06 Scavenger collects Tractor Beam. 02662_ Connecting with Recycling Unit... >>Retrieve(Components) Retrieving 2 components... Imp. Deuterium Engine Flak Gun >>Trojan(Reject) Trojan loaded successfully. Testing... Ejection routine running. 02665_ Acquired Flak Gun. 02668_ Acquired Imp. Deuterium Engine. 02705_ Discarded Hacking Suite. 02706_ Acquired Hrd. Medium Armor Plating. 02710_ Acquired 10 matter. 02813_ Y-54 Guardian springs to life. Map ----- +----------------------------------------------------+ | ?????????????????????????????????????????????????? | | ?????????????????????????????????????????????????? | | ?????????????????????????????????????????????????? | | ?????????????????????????????????????????????????? | | ?????????????????????????????????????????????????? | | ?????????????????????????????????????????????????? | | ?????????????????????????????????????????????????? | | ?????????????????????????????????????????????????? | | ?????????????????????????????????????????????????? | | ????????????????????????+##+?????????????????????? | | ???????????##########??? #????????????????????? | | ???????????# ] #??? #????????????????????? | | ???????????# #??? #????????????????????? | | ???????????# #??? #????????????????????? | | ??????????## #??? ##???????????????????? | | ??????????# #??? #???????????????????? | | ??????????## % %#??# #????????????????????? | | ???????????# | #### #????????????????????? | | ??#####????# + #????????????????????? | | ??#"""#????# # #????????????????????? | | ###"Y"########+###### ######+###???????????? | | ??????????? | | ??????????? | | ??????????? | | ####+#########+#########Y###########?????????????? | | ?? ??????# ??# @ #???????????????????? | | ? ""??????# #?# #???????????????????? | | # """?????# #?# #???????????????????? | | # """?????# #?# #???????????????????? | | # """"????# "" #?# "" "" #???????????????????? | | # ? ????????# "" #?# ""T"" #???????????????????? | | # ????????# Y" #?# """ #???????????????????? | | #? ????????# "" #?# +???????????????????? | | ?? ????????# ?? #?###########???????????????????? | | ??#?????????# ?? #???????????????????????????????? | | ????????????##???#???????????????????????????????? | | ##???????????????????????????????????????????????? | | # #####################??????????????????????????? | | # # #??????????????????????????? | | # # #??????????????????????????? | | # # #??????????????????????????? | | # # #??????????????????????????? | | # # #??????????????????????????? | | + + ! #??????????????????????????? | | # # #??????????????????????????? | | # # ! #??????????????????????????? | | ######### ######## ##??????????????????????????? | | #????????#???????????????????????????? | | ######+###+#######???????????????????????????????? | | # #????????????????????????????? | +----------------------------------------------------+ Best States ------------- Heat Dissipation 25 Energy Generation 15 Energy Capacity 250 Matter Stores 300 Matter Capacity 300 Sight Range 16 Terrain Scan Density 10 Armor Coverage 225 Evasion (%) 50 Recoil Reduction 2 Offensive Hacking 10 Item Schematics ----------------- None Robot Schematics ------------------ None Fabricated ------------ Nothing Repaired ---------- Nothing Studied --------- None Alien Tech Used ----------------- None Achievements -------------- None Challenges ------------ None Game ------ Seed PulseAlertCarapace Manual? 0 Play Time 00:15:30 Cumulative 307.7 hours Start 2026.09.21 @ 13:19:36 End 2026.09.21 @ 13:33:26 Sessions 1 Manual Loads 0 Difficulty Rogue Special Mode None Game No. 330 Rogue 330 Adventurer 0 Explorer 0 Win Type - Total 3 Types 3/0/0/0/0/0/0/0/0/0 Lore% 40 Gallery% 58 Achievement% 45 Wizard Run 0 Options --------- Layout 1 ASCII 0 Keyboard 0 Movement Numpad Keybinds 0 Fullscreen 2 Font 24/Smallcaps Map View 50x35 Zoom Use 0% Tactical HUD 1 Map Filters NONE Filters NONE Steam 1 RUN: 7c658562-eb6a-4ebc-a07d-2fbac9c2693b